[Event "Titled Tuesday Blitz May 23 Late 2023"]
[White "ArrestingPieces"]
[Black "Dimitrov, Atanas"]
[BlackFideId "2901315"]
[WhiteElo "2475"]
[BlackElo "2719"]
[Result "1/2-1/2"]
[Round "02"]
[TimeControl "180+2"]
[Date "2023.05.23"]
[WhiteClock "0:00:05"]
[BlackClock "0:00:06"]

1. d4 {[%clk 0:03:00]}  Nf6 {[%clk 0:03:00]} 2. Nf3 {[%clk 0:03:00]}  g6 {[%clk 0:03:00]} 3. Nc3 {[%clk 0:02:59]}  d5 {[%clk 0:03:00]} 4. Bf4 {[%clk 0:02:58]}  Bg7 {[%clk 0:03:00]} 5. Nb5 {[%clk 0:02:58]}  Na6 {[%clk 0:03:00]} 6. e3 {[%clk 0:02:58]}  c6 {[%clk 0:03:00]} 7. Nc3 {[%clk 0:02:58]}  Nc7 {[%clk 0:03:00]} 8. h3 {[%clk 0:02:57]}  O-O {[%clk 0:03:00]} 9. Be2 {[%clk 0:02:56]}  Bf5 {[%clk 0:02:47]} 10. O-O {[%clk 0:02:56]}  Ne4 {[%clk 0:02:44]} 11. Nxe4 {[%clk 0:02:51]}  Bxe4 {[%clk 0:02:45]} 12. Nd2 {[%clk 0:02:50]}  Bf5 {[%clk 0:02:45]} 13. Bh2 {[%clk 0:02:41]}  c5 {[%clk 0:02:41]} 14. c3 {[%clk 0:02:14]}  Rc8 {[%clk 0:02:38]} 15. g4 {[%clk 0:02:13]}  Bd7 {[%clk 0:02:32]} 16. f4 {[%clk 0:02:13]}  cxd4 {[%clk 0:02:27]} 17. exd4 {[%clk 0:02:12]}  Nb5 {[%clk 0:02:15]} 18. Bd3 {[%clk 0:02:07]}  Nd6 {[%clk 0:02:15]} 19. Qe2 {[%clk 0:02:07]}  Qb6 {[%clk 0:01:58]} 20. Nf3 {[%clk 0:02:07]}  Ne4 {[%clk 0:01:50]} 21. Ne5 {[%clk 0:01:55]}  Bc6 {[%clk 0:01:47]} 22. f5 {[%clk 0:01:40]}  f6 {[%clk 0:01:35]} 23. Nxc6 {[%clk 0:01:35]}  Qxc6 {[%clk 0:01:36]} 24. Bxe4 {[%clk 0:01:30]}  dxe4 {[%clk 0:01:35]} 25. Rae1 {[%clk 0:01:30]}  gxf5 {[%clk 0:01:15]} 26. gxf5 {[%clk 0:01:31]}  Kh8 {[%clk 0:01:15]} 27. Qxe4 {[%clk 0:01:30]}  Qb6 {[%clk 0:01:14]} 28. Rf2 {[%clk 0:01:28]}  Bh6 {[%clk 0:01:10]} 29. Kh1 {[%clk 0:01:28]}  Rg8 {[%clk 0:01:04]} 30. Rg1 {[%clk 0:01:05]}  Rxg1+ {[%clk 0:00:57]} 31. Bxg1 {[%clk 0:01:05]}  Rg8 {[%clk 0:00:58]} 32. Bh2 {[%clk 0:01:05]}  Rg7 {[%clk 0:00:39]} 33. Rg2 {[%clk 0:01:06]}  Rxg2 {[%clk 0:00:39]} 34. Qxg2 {[%clk 0:01:06]}  Qa6 {[%clk 0:00:35]} 35. a3 {[%clk 0:00:56]}  Qd3 {[%clk 0:00:35]} 36. Bg3 {[%clk 0:00:49]}  Bc1 {[%clk 0:00:32]} 37. Kh2 {[%clk 0:00:46]}  Qb5 {[%clk 0:00:29]} 38. b4 {[%clk 0:00:36]}  Bxa3 {[%clk 0:00:26]} 39. Qe4 {[%clk 0:00:36]}  Qd7 {[%clk 0:00:21]} 40. d5 {[%clk 0:00:30]}  Bc1 {[%clk 0:00:20]} 41. Bf2 {[%clk 0:00:30]}  Qd6+ {[%clk 0:00:18]} 42. Kg2 {[%clk 0:00:30]}  b6 {[%clk 0:00:15]} 43. Bd4 {[%clk 0:00:30]}  Bh6 {[%clk 0:00:14]} 44. Qe6 {[%clk 0:00:21]}  Kg7 {[%clk 0:00:11]} 45. Qxd6 {[%clk 0:00:20]}  exd6 {[%clk 0:00:12]} 46. b5 {[%clk 0:00:20]}  Kf7 {[%clk 0:00:11]} 47. c4 {[%clk 0:00:20]}  Bd2 {[%clk 0:00:11]} 48. Kf3 {[%clk 0:00:20]}  Bb4 {[%clk 0:00:12]} 49. Ke4 {[%clk 0:00:20]}  Ke7 {[%clk 0:00:11]} 50. Be3 {[%clk 0:00:20]}  Kf7 {[%clk 0:00:12]} 51. Bf4 {[%clk 0:00:19]}  Ke7 {[%clk 0:00:12]} 52. Kf3 {[%clk 0:00:19]}  Bc5 {[%clk 0:00:12]} 53. Kg4 {[%clk 0:00:19]}  Kf7 {[%clk 0:00:12]} 54. Kh5 {[%clk 0:00:20]}  Kg7 {[%clk 0:00:12]} 55. Bh6+ {[%clk 0:00:20]}  Kf7 {[%clk 0:00:12]} 56. Bd2 {[%clk 0:00:19]}  Kg7 {[%clk 0:00:12]} 57. Bc3 {[%clk 0:00:18]}  Be3 {[%clk 0:00:12]} 58. Kg4 {[%clk 0:00:18]}  Bc5 {[%clk 0:00:12]} 59. Kf3 {[%clk 0:00:18]}  Kf7 {[%clk 0:00:12]} 60. Bd2 {[%clk 0:00:15]}  Kg7 {[%clk 0:00:11]} 61. Kg4 {[%clk 0:00:09]}  Kf7 {[%clk 0:00:10]} 62. Be1 {[%clk 0:00:07]}  Kg7 {[%clk 0:00:10]} 63. Bg3 {[%clk 0:00:08]}  Bb4 {[%clk 0:00:08]} 64. Bf4 {[%clk 0:00:09]}  Bc5 {[%clk 0:00:08]} 65. Bd2 {[%clk 0:00:09]}  Ba3 {[%clk 0:00:09]} 66. Bc3 {[%clk 0:00:09]}  Bc5 {[%clk 0:00:09]} 67. Bb2 {[%clk 0:00:08]}  Bb4 {[%clk 0:00:09]} 68. h4 {[%clk 0:00:09]}  Bc5 {[%clk 0:00:09]} 69. Kh5 {[%clk 0:00:10]}  Bb4 {[%clk 0:00:09]} 70. Bd4 {[%clk 0:00:08]}  Ba3 {[%clk 0:00:09]} 71. Be3 {[%clk 0:00:08]}  Bb4 {[%clk 0:00:08]} 72. Kg4 {[%clk 0:00:08]}  Ba3 {[%clk 0:00:07]} 73. Kf3 {[%clk 0:00:08]}  Bb4 {[%clk 0:00:08]} 74. Ke2 {[%clk 0:00:09]}  Bc3 {[%clk 0:00:06]} 75. Kd3 {[%clk 0:00:08]}  Be5 {[%clk 0:00:07]} 76. Kc2 {[%clk 0:00:05]}  Kf7 {[%clk 0:00:06]} 77. Kb3 {[%clk 0:00:04]}  Kg7 {[%clk 0:00:06]} 78. Ka4 {[%clk 0:00:05]}  Kf7 {[%clk 0:00:06]} 79. Kb4 {[%clk 0:00:05]}  Bg3 {[%clk 0:00:06]} 80. h5 {[%clk 0:00:05]}  Be1+ {[%clk 0:00:07]} 81. Kb3 {[%clk 0:00:05]}  Bg3 {[%clk 0:00:07]} 82. Kc2 {[%clk 0:00:06]}  Be5 {[%clk 0:00:07]} 83. Kd3 {[%clk 0:00:06]}  Kg7 {[%clk 0:00:08]} 84. Ke4 {[%clk 0:00:07]}  Kf7 {[%clk 0:00:08]} 85. Kf3 {[%clk 0:00:05]}  Kg7 {[%clk 0:00:06]} 86. Ke4 {[%clk 0:00:05]} 1/2-1/2


[Site "https://www.chess.com"]

[Event "Titled Tuesday Blitz May 23 Late 2023"]
[White "Hamitevici, Vladimir"]
[Black "merinasian"]
[WhiteFideId "13902393"]
[WhiteElo "2401"]
[BlackElo "2468"]
[Result "1-0"]
[Round "02"]
[TimeControl "180+2"]
[Date "2023.05.23"]
[WhiteClock "0:00:03"]
[BlackClock "0:00:14"]

1. c4 {[%clk 0:03:00]}  Nf6 {[%clk 0:02:56]} 2. Nc3 {[%clk 0:03:00]}  g6 {[%clk 0:02:50]} 3. e4 {[%clk 0:02:58]}  d6 {[%clk 0:02:49]} 4. d4 {[%clk 0:02:58]}  Bg7 {[%clk 0:02:49]} 5. Nge2 {[%clk 0:02:53]}  O-O {[%clk 0:02:47]} 6. Ng3 {[%clk 0:02:49]}  e5 {[%clk 0:02:33]} 7. d5 {[%clk 0:02:49]}  c6 {[%clk 0:02:25]} 8. Be2 {[%clk 0:02:46]}  cxd5 {[%clk 0:02:25]} 9. cxd5 {[%clk 0:02:44]}  a6 {[%clk 0:02:21]} 10. h4 {[%clk 0:02:33]}  h5 {[%clk 0:02:20]} 11. Bg5 {[%clk 0:02:31]}  Qb6 {[%clk 0:02:14]} 12. Qd2 {[%clk 0:02:21]}  Nbd7 {[%clk 0:02:11]} 13. O-O {[%clk 0:01:59]}  Qd4 {[%clk 0:02:06]} 14. Qc1 {[%clk 0:01:52]}  Nc5 {[%clk 0:01:57]} 15. Be3 {[%clk 0:01:36]}  Qb4 {[%clk 0:01:57]} 16. a3 {[%clk 0:01:33]}  Qb3 {[%clk 0:01:57]} 17. Bd1 {[%clk 0:01:07]}  Qc4 {[%clk 0:01:56]} 18. Qc2 {[%clk 0:00:56]}  Qd3 {[%clk 0:01:29]} 19. b4 {[%clk 0:00:47]}  Qxc2 {[%clk 0:01:24]} 20. Bxc2 {[%clk 0:00:48]}  Ncd7 {[%clk 0:01:25]} 21. f3 {[%clk 0:00:47]}  Ne8 {[%clk 0:01:18]} 22. Rfc1 {[%clk 0:00:37]}  Kh7 {[%clk 0:01:17]} 23. a4 {[%clk 0:00:32]}  Bh6 {[%clk 0:01:16]} 24. Bxh6 {[%clk 0:00:26]}  Kxh6 {[%clk 0:01:17]} 25. a5 {[%clk 0:00:27]}  Ng7 {[%clk 0:01:12]} 26. Ba4 {[%clk 0:00:24]}  f5 {[%clk 0:01:10]} 27. Nce2 {[%clk 0:00:20]}  fxe4 {[%clk 0:01:04]} 28. fxe4 {[%clk 0:00:21]}  Nf6 {[%clk 0:01:03]} 29. Rc7 {[%clk 0:00:18]}  Bg4 {[%clk 0:00:53]} 30. Bd1 {[%clk 0:00:10]}  Rab8 {[%clk 0:00:44]} 31. Rac1 {[%clk 0:00:09]}  Nge8 {[%clk 0:00:41]} 32. Re7 {[%clk 0:00:07]}  Ng8 {[%clk 0:00:36]} 33. Re6 {[%clk 0:00:05]}  Bxe6 {[%clk 0:00:35]} 34. dxe6 {[%clk 0:00:06]}  Ng7 {[%clk 0:00:32]} 35. Bb3 {[%clk 0:00:06]}  Rfc8 {[%clk 0:00:31]} 36. Rd1 {[%clk 0:00:06]}  Rd8 {[%clk 0:00:30]} 37. Nc3 {[%clk 0:00:06]}  Ne7 {[%clk 0:00:30]} 38. Nd5 {[%clk 0:00:06]}  Nxd5 {[%clk 0:00:27]} 39. exd5 {[%clk 0:00:07]}  Nf5 {[%clk 0:00:26]} 40. Ne4 {[%clk 0:00:03]}  Nd4 {[%clk 0:00:24]} 41. Ba4 {[%clk 0:00:02]}  Rbc8 {[%clk 0:00:23]} 42. e7 {[%clk 0:00:03]}  Re8 {[%clk 0:00:23]} 43. Nxd6 {[%clk 0:00:03]}  Rxe7 {[%clk 0:00:20]} 44. Nxc8 {[%clk 0:00:04]}  Re8 {[%clk 0:00:14]} 45. Bxe8 {[%clk 0:00:03]} 1-0


[Site "https://www.chess.com"]

[Event "Titled Tuesday Blitz May 23 Late 2023"]
[White "Kisic, Bozidar"]
[Black "Morefield, Jason"]
[WhiteFideId "16500350"]
[BlackFideId "30920825"]
[WhiteElo "2234"]
[BlackElo "2171"]
[Result "1-0"]
[Round "02"]
[TimeControl "180+2"]
[Date "2023.05.23"]
[WhiteClock "0:00:09"]
[BlackClock "0:00:07"]

1. d4 {[%clk 0:02:59]}  Nf6 {[%clk 0:02:59]} 2. Bg5 {[%clk 0:02:58]}  c5 {[%clk 0:02:58]} 3. d5 {[%clk 0:02:57]}  b5 {[%clk 0:02:57]} 4. a4 {[%clk 0:02:30]}  b4 {[%clk 0:02:55]} 5. f3 {[%clk 0:02:22]}  d6 {[%clk 0:02:54]} 6. e4 {[%clk 0:02:20]}  Nbd7 {[%clk 0:02:53]} 7. Nd2 {[%clk 0:02:18]}  g6 {[%clk 0:02:53]} 8. Nc4 {[%clk 0:02:14]}  Bg7 {[%clk 0:02:49]} 9. Qd2 {[%clk 0:02:14]}  h6 {[%clk 0:02:41]} 10. Be3 {[%clk 0:02:14]}  a5 {[%clk 0:02:39]} 11. Nh3 {[%clk 0:02:05]}  Nb6 {[%clk 0:02:33]} 12. Nxb6 {[%clk 0:01:36]}  Qxb6 {[%clk 0:02:34]} 13. Nf2 {[%clk 0:01:33]}  Ba6 {[%clk 0:02:29]} 14. Be2 {[%clk 0:01:30]}  Nd7 {[%clk 0:02:28]} 15. Rb1 {[%clk 0:01:26]}  Bxe2 {[%clk 0:02:27]} 16. Qxe2 {[%clk 0:01:26]}  O-O {[%clk 0:02:27]} 17. Qd2 {[%clk 0:01:12]}  Kh7 {[%clk 0:02:26]} 18. Ng4 {[%clk 0:01:07]}  h5 {[%clk 0:02:24]} 19. Nf2 {[%clk 0:01:07]}  Ne5 {[%clk 0:02:23]} 20. Qe2 {[%clk 0:01:07]}  Qa6 {[%clk 0:02:21]} 21. b3 {[%clk 0:01:04]}  Qxe2+ {[%clk 0:02:21]} 22. Kxe2 {[%clk 0:01:04]}  Rfc8 {[%clk 0:02:20]} 23. f4 {[%clk 0:00:56]}  Nd7 {[%clk 0:02:20]} 24. h4 {[%clk 0:00:34]}  c4 {[%clk 0:02:17]} 25. Rhc1 {[%clk 0:00:35]}  Rc7 {[%clk 0:02:12]} 26. g4 {[%clk 0:00:33]}  hxg4 {[%clk 0:01:54]} 27. Nxg4 {[%clk 0:00:33]}  f5 {[%clk 0:01:52]} 28. Nf2 {[%clk 0:00:29]}  Nf6 {[%clk 0:01:51]} 29. Bd4 {[%clk 0:00:24]}  fxe4 {[%clk 0:01:47]} 30. Bxf6 {[%clk 0:00:24]}  exf6 {[%clk 0:01:47]} 31. Nxe4 {[%clk 0:00:24]}  Re8 {[%clk 0:01:18]} 32. Kf3 {[%clk 0:00:24]}  cxb3 {[%clk 0:00:57]} 33. cxb3 {[%clk 0:00:24]}  Rce7 {[%clk 0:00:52]} 34. Re1 {[%clk 0:00:24]}  Kg8 {[%clk 0:00:41]} 35. Re2 {[%clk 0:00:24]}  f5 {[%clk 0:00:39]} 36. Ng3 {[%clk 0:00:25]}  Rxe2 {[%clk 0:00:38]} 37. Nxe2 {[%clk 0:00:25]}  Rc8 {[%clk 0:00:39]} 38. Rc1 {[%clk 0:00:26]}  Rc5 {[%clk 0:00:23]} 39. Rxc5 {[%clk 0:00:22]}  dxc5 {[%clk 0:00:24]} 40. Nc1 {[%clk 0:00:23]}  Kf7 {[%clk 0:00:20]} 41. Ke2 {[%clk 0:00:20]}  Bf6 {[%clk 0:00:19]} 42. Kd3 {[%clk 0:00:19]}  Bxh4 {[%clk 0:00:19]} 43. Kc4 {[%clk 0:00:20]}  Ke7 {[%clk 0:00:15]} 44. Nd3 {[%clk 0:00:19]}  Bg3 {[%clk 0:00:14]} 45. Kxc5 {[%clk 0:00:19]}  Kd7 {[%clk 0:00:13]} 46. Kb5 {[%clk 0:00:18]}  Kd6 {[%clk 0:00:13]} 47. Kxa5 {[%clk 0:00:18]}  Kxd5 {[%clk 0:00:13]} 48. Kxb4 {[%clk 0:00:19]}  Kd4 {[%clk 0:00:14]} 49. Ne5 {[%clk 0:00:19]}  Bxf4 {[%clk 0:00:14]} 50. Nxg6 {[%clk 0:00:19]}  Bd6+ {[%clk 0:00:14]} 51. Kb5 {[%clk 0:00:20]}  f4 {[%clk 0:00:11]} 52. Nh4 {[%clk 0:00:20]}  Ke4 {[%clk 0:00:10]} 53. a5 {[%clk 0:00:18]}  Be7 {[%clk 0:00:10]} 54. a6 {[%clk 0:00:10]}  Bxh4 {[%clk 0:00:10]} 55. a7 {[%clk 0:00:10]}  f3 {[%clk 0:00:10]} 56. a8=Q+ {[%clk 0:00:11]}  Ke3 {[%clk 0:00:10]} 57. Qe8+ {[%clk 0:00:11]}  Kd2 {[%clk 0:00:10]} 58. Qd7+ {[%clk 0:00:10]}  Ke2 {[%clk 0:00:10]} 59. Qe6+ {[%clk 0:00:10]}  Kf1 {[%clk 0:00:10]} 60. Qh3+ {[%clk 0:00:10]}  Kg1 {[%clk 0:00:11]} 61. Qxh4 {[%clk 0:00:10]}  f2 {[%clk 0:00:12]} 62. Qxf2+ {[%clk 0:00:10]}  Kh1 {[%clk 0:00:07]} 63. Qe2 {[%clk 0:00:09]} 1-0


[Site "https://www.chess.com"]

[Event "Titled Tuesday Blitz May 23 Late 2023"]
[White "Goltsev, Dmitry"]
[Black "Buchenau, Frank"]
[WhiteFideId "24176710"]
[BlackFideId "4604350"]
[WhiteElo "2356"]
[BlackElo "2157"]
[Result "1-0"]
[Round "02"]
[TimeControl "180+2"]
[Date "2023.05.23"]
[WhiteClock "0:01:21"]
[BlackClock "0:00:39"]

1. e4 {[%clk 0:03:00]}  e6 {[%clk 0:03:00]} 2. d4 {[%clk 0:03:00]}  d5 {[%clk 0:03:00]} 3. exd5 {[%clk 0:03:01]}  exd5 {[%clk 0:02:59]} 4. Nf3 {[%clk 0:03:02]}  Bf5 {[%clk 0:02:58]} 5. c4 {[%clk 0:03:03]}  Bxb1 {[%clk 0:02:58]} 6. Rxb1 {[%clk 0:03:03]}  Bb4+ {[%clk 0:02:58]} 7. Bd2 {[%clk 0:03:02]}  Bxd2+ {[%clk 0:02:58]} 8. Qxd2 {[%clk 0:03:03]}  Nf6 {[%clk 0:02:59]} 9. Bd3 {[%clk 0:03:02]}  dxc4 {[%clk 0:02:58]} 10. Bxc4 {[%clk 0:03:03]}  Qe7+ {[%clk 0:02:56]} 11. Ne5 {[%clk 0:03:03]}  O-O {[%clk 0:02:50]} 12. O-O {[%clk 0:03:03]}  Nbd7 {[%clk 0:02:48]} 13. Rfe1 {[%clk 0:03:01]}  Qd6 {[%clk 0:02:30]} 14. Qc3 {[%clk 0:02:53]}  Nb6 {[%clk 0:02:27]} 15. Bb3 {[%clk 0:02:46]}  Nbd5 {[%clk 0:02:20]} 16. Qg3 {[%clk 0:02:46]}  Ne7 {[%clk 0:02:08]} 17. Nxf7 {[%clk 0:02:41]}  Qxg3 {[%clk 0:01:57]} 18. hxg3 {[%clk 0:02:32]}  Ned5 {[%clk 0:01:51]} 19. Ng5 {[%clk 0:02:24]}  Rfe8 {[%clk 0:01:46]} 20. Re5 {[%clk 0:02:20]}  c6 {[%clk 0:01:36]} 21. Rbe1 {[%clk 0:02:18]}  Red8 {[%clk 0:01:30]} 22. Ne6 {[%clk 0:02:12]}  Rd7 {[%clk 0:01:26]} 23. Nc5 {[%clk 0:02:07]}  Rf7 {[%clk 0:01:25]} 24. f3 {[%clk 0:01:52]}  b6 {[%clk 0:01:23]} 25. Nd3 {[%clk 0:01:49]}  Kf8 {[%clk 0:01:15]} 26. g4 {[%clk 0:01:46]}  Rd8 {[%clk 0:01:05]} 27. Re6 {[%clk 0:01:29]}  Ne7 {[%clk 0:00:39]} 28. Ne5 {[%clk 0:01:21]} 1-0


[Site "https://www.chess.com"]

[Event "Titled Tuesday Blitz May 23 Late 2023"]
[White "Van Dael, Siem"]
[Black "Alex_Sahakyan2006"]
[WhiteFideId "1049771"]
[WhiteElo "2336"]
[BlackElo "2698"]
[Result "1-0"]
[Round "02"]
[TimeControl "180+2"]
[Date "2023.05.23"]
[WhiteClock "0:00:05"]
[BlackClock "0:00:21"]

1. e4 {[%clk 0:03:00]}  e6 {[%clk 0:02:49]} 2. d4 {[%clk 0:03:00]}  d5 {[%clk 0:02:49]} 3. Nd2 {[%clk 0:03:01]}  Nc6 {[%clk 0:02:39]} 4. Ngf3 {[%clk 0:03:00]}  Nf6 {[%clk 0:02:35]} 5. e5 {[%clk 0:03:00]}  Nd7 {[%clk 0:02:35]} 6. Nb3 {[%clk 0:03:00]}  a5 {[%clk 0:02:32]} 7. a4 {[%clk 0:03:00]}  f6 {[%clk 0:02:27]} 8. Bb5 {[%clk 0:02:59]}  fxe5 {[%clk 0:02:24]} 9. dxe5 {[%clk 0:02:59]}  Bb4+ {[%clk 0:01:59]} 10. c3 {[%clk 0:02:58]}  Be7 {[%clk 0:01:58]} 11. O-O {[%clk 0:02:42]}  O-O {[%clk 0:01:57]} 12. Re1 {[%clk 0:02:41]}  Nc5 {[%clk 0:01:53]} 13. Nxc5 {[%clk 0:01:24]}  Bxc5 {[%clk 0:01:54]} 14. Be3 {[%clk 0:01:25]}  Bxe3 {[%clk 0:01:41]} 15. Rxe3 {[%clk 0:01:24]}  Ne7 {[%clk 0:01:41]} 16. Bd3 {[%clk 0:01:21]}  c5 {[%clk 0:01:03]} 17. Bxh7+ {[%clk 0:00:22]}  Kxh7 {[%clk 0:01:00]} 18. Ng5+ {[%clk 0:00:23]}  Kg8 {[%clk 0:00:59]} 19. Qh5 {[%clk 0:00:18]}  Rf5 {[%clk 0:00:59]} 20. Rh3 {[%clk 0:00:05]}  Kf8 {[%clk 0:00:57]} 21. Nh7+ {[%clk 0:00:03]}  Kg8 {[%clk 0:00:57]} 22. Nf6+ {[%clk 0:00:03]}  Rxf6 {[%clk 0:00:28]} 23. exf6 {[%clk 0:00:02]}  Ng6 {[%clk 0:00:28]} 24. Qxg6 {[%clk 0:00:02]}  Qxf6 {[%clk 0:00:23]} 25. Qe8+ {[%clk 0:00:02]}  Qf8 {[%clk 0:00:24]} 26. Rh8+ {[%clk 0:00:03]}  Kxh8 {[%clk 0:00:24]} 27. Qxf8+ {[%clk 0:00:04]}  Kh7 {[%clk 0:00:25]} 28. Re1 {[%clk 0:00:04]}  e5 {[%clk 0:00:23]} 29. Rxe5 {[%clk 0:00:04]}  Kg6 {[%clk 0:00:23]} 30. Qe8+ {[%clk 0:00:04]}  Kf6 {[%clk 0:00:23]} 31. Qe7+ {[%clk 0:00:04]}  Kg6 {[%clk 0:00:21]} 32. Rg5+ {[%clk 0:00:05]} 1-0


[Site "https://www.chess.com"]

[Event "Titled Tuesday Blitz May 23 Late 2023"]
[White "Maltsevskaya, Aleksandra"]
[Black "Perez Rodriguez, Jennifer"]
[WhiteFideId "24174041"]
[BlackFideId "3507831"]
[WhiteElo "2302"]
[BlackElo "2116"]
[Result "0-1"]
[Round "02"]
[TimeControl "180+2"]
[Date "2023.05.23"]
[WhiteClock "0:00:12"]
[BlackClock "0:00:22"]

1. e4 {[%clk 0:03:00]}  e5 {[%clk 0:02:59]} 2. Nf3 {[%clk 0:02:57]}  Nc6 {[%clk 0:02:59]} 3. Bb5 {[%clk 0:02:56]}  f5 {[%clk 0:02:59]} 4. d3 {[%clk 0:02:55]}  fxe4 {[%clk 0:02:59]} 5. dxe4 {[%clk 0:02:56]}  Nf6 {[%clk 0:02:59]} 6. O-O {[%clk 0:02:56]}  d6 {[%clk 0:02:58]} 7. c3 {[%clk 0:02:48]}  Be7 {[%clk 0:02:55]} 8. Bc4 {[%clk 0:02:46]}  Bg4 {[%clk 0:02:52]} 9. Bg5 {[%clk 0:02:39]}  Qd7 {[%clk 0:02:47]} 10. Nbd2 {[%clk 0:02:37]}  Be6 {[%clk 0:02:44]} 11. Qb3 {[%clk 0:02:30]}  Bxc4 {[%clk 0:02:42]} 12. Nxc4 {[%clk 0:02:30]}  Nd8 {[%clk 0:02:39]} 13. Rad1 {[%clk 0:02:27]}  Qe6 {[%clk 0:02:31]} 14. Be3 {[%clk 0:01:54]}  Ng4 {[%clk 0:02:08]} 15. Bc1 {[%clk 0:01:43]}  h6 {[%clk 0:01:41]} 16. h3 {[%clk 0:01:37]}  Nf6 {[%clk 0:01:41]} 17. Qa4+ {[%clk 0:01:31]}  Kf7 {[%clk 0:01:27]} 18. Ne3 {[%clk 0:01:10]}  Rf8 {[%clk 0:01:26]} 19. Nh4 {[%clk 0:01:06]}  g6 {[%clk 0:01:04]} 20. Qc2 {[%clk 0:00:56]}  Kg7 {[%clk 0:01:02]} 21. f4 {[%clk 0:00:35]}  exf4 {[%clk 0:00:59]} 22. Rxf4 {[%clk 0:00:36]}  Nf7 {[%clk 0:00:45]} 23. Nxg6 {[%clk 0:00:32]}  Ne5 {[%clk 0:00:40]} 24. Nxf8 {[%clk 0:00:32]}  Rxf8 {[%clk 0:00:39]} 25. Nf5+ {[%clk 0:00:32]}  Kh7 {[%clk 0:00:39]} 26. Rdf1 {[%clk 0:00:33]}  Nh5 {[%clk 0:00:33]} 27. R4f2 {[%clk 0:00:28]}  Bg5 {[%clk 0:00:28]} 28. Bxg5 {[%clk 0:00:27]}  hxg5 {[%clk 0:00:29]} 29. Qe2 {[%clk 0:00:26]}  Nf4 {[%clk 0:00:25]} 30. Qg4 {[%clk 0:00:12]}  Nxg4 {[%clk 0:00:22]} 0-1


[Site "https://www.chess.com"]

[Event "Titled Tuesday Blitz May 23 Late 2023"]
[White "Timmermans, Mark"]
[Black "Lima, Kleyton Alcantara"]
[WhiteFideId "1026399"]
[BlackFideId "22718397"]
[WhiteElo "2460"]
[BlackElo "2009"]
[Result "1/2-1/2"]
[Round "02"]
[TimeControl "180+2"]
[Date "2023.05.23"]
[WhiteClock "0:01:29"]
[BlackClock "0:00:42"]

1. e4 {[%clk 0:02:59]}  c5 {[%clk 0:02:59]} 2. Nf3 {[%clk 0:02:59]}  d6 {[%clk 0:03:00]} 3. d4 {[%clk 0:02:57]}  cxd4 {[%clk 0:03:00]} 4. Nxd4 {[%clk 0:02:57]}  Nf6 {[%clk 0:03:00]} 5. Nc3 {[%clk 0:02:57]}  a6 {[%clk 0:03:00]} 6. Be3 {[%clk 0:02:56]}  e5 {[%clk 0:02:58]} 7. Nb3 {[%clk 0:02:55]}  Be6 {[%clk 0:02:59]} 8. f3 {[%clk 0:02:56]}  h5 {[%clk 0:02:59]} 9. Qd2 {[%clk 0:02:55]}  Nbd7 {[%clk 0:02:59]} 10. Nd5 {[%clk 0:02:55]}  Bxd5 {[%clk 0:02:57]} 11. exd5 {[%clk 0:02:56]}  g6 {[%clk 0:02:58]} 12. c4 {[%clk 0:02:55]}  Bg7 {[%clk 0:02:42]} 13. Be2 {[%clk 0:02:52]}  O-O {[%clk 0:02:31]} 14. O-O {[%clk 0:02:52]}  b6 {[%clk 0:02:32]} 15. a4 {[%clk 0:02:51]}  a5 {[%clk 0:02:24]} 16. Nc1 {[%clk 0:02:39]}  Nc5 {[%clk 0:02:15]} 17. Na2 {[%clk 0:02:27]}  Nb3 {[%clk 0:02:14]} 18. Qc2 {[%clk 0:02:26]}  Nxa1 {[%clk 0:02:14]} 19. Rxa1 {[%clk 0:02:27]}  Nd7 {[%clk 0:02:13]} 20. Nc3 {[%clk 0:02:27]}  Nc5 {[%clk 0:02:11]} 21. Nb5 {[%clk 0:02:25]}  Re8 {[%clk 0:02:00]} 22. Ra3 {[%clk 0:02:12]}  Qf6 {[%clk 0:01:55]} 23. Qd2 {[%clk 0:02:10]}  Rad8 {[%clk 0:01:48]} 24. Bg5 {[%clk 0:01:58]}  Qf5 {[%clk 0:01:48]} 25. Bxd8 {[%clk 0:01:51]}  Rxd8 {[%clk 0:01:49]} 26. Nc3 {[%clk 0:01:51]}  e4 {[%clk 0:01:45]} 27. Nxe4 {[%clk 0:01:49]}  Nxe4 {[%clk 0:01:43]} 28. fxe4 {[%clk 0:01:50]}  Qxe4 {[%clk 0:01:43]} 29. Rf3 {[%clk 0:01:51]}  Re8 {[%clk 0:01:31]} 30. Bd3 {[%clk 0:01:49]}  Qd4+ {[%clk 0:01:15]} 31. Kf1 {[%clk 0:01:49]}  Qxb2 {[%clk 0:01:07]} 32. Qxb2 {[%clk 0:01:49]}  Bxb2 {[%clk 0:01:08]} 33. Rf2 {[%clk 0:01:49]}  Bd4 {[%clk 0:01:08]} 34. Re2 {[%clk 0:01:47]}  Rxe2 {[%clk 0:01:07]} 35. Kxe2 {[%clk 0:01:47]}  f5 {[%clk 0:01:07]} 36. Kf3 {[%clk 0:01:44]}  Kg7 {[%clk 0:01:07]} 37. g3 {[%clk 0:01:45]}  Kf6 {[%clk 0:01:07]} 38. h3 {[%clk 0:01:39]}  g5 {[%clk 0:01:07]} 39. g4 {[%clk 0:01:37]}  fxg4+ {[%clk 0:01:07]} 40. hxg4 {[%clk 0:01:37]}  h4 {[%clk 0:01:07]} 41. Ke4 {[%clk 0:01:31]}  h3 {[%clk 0:00:59]} 42. Bf1 {[%clk 0:01:32]}  h2 {[%clk 0:00:54]} 43. Bg2 {[%clk 0:01:30]}  Bc5 {[%clk 0:00:43]} 44. Bh1 {[%clk 0:01:30]}  Bg1 {[%clk 0:00:42]} 45. Bg2 {[%clk 0:01:29]}  Bc5 {[%clk 0:00:42]} 46. Bh1 {[%clk 0:01:29]}  Bg1 {[%clk 0:00:42]} 47. Bg2 {[%clk 0:01:29]}  Bc5 {[%clk 0:00:42]} 1/2-1/2


[Site "https://www.chess.com"]